bitfinex-derivatives/quotes_BNBF0:USTF0_20251027
["timestamp","ask_amount","ask_price","bid_price","bid_amount"]
[1761551339732,0.15022437,1160.0,1157.2,0.56733916]
[1761551339930,0.15022437,1160.0,1157.3,0.56733916]
[1761551340128,0.15022437,1160.0,1157.4,0.56733916]
[1761551340332,0.15022437,1160.0,1157.5,0.56733916]
[1761551340532,0.15022437,1160.0,1157.0,0.63557762]
[1761551340729,0.15022437,1160.0,1157.6,1.167]
[1761551345945,2.29382447,1160.0,1157.6,1.167]
[1761551347945,0.15022437,1160.0,1157.6,1.167]
[1761551348446,2.1436001,1159.6,1157.6,1.167]
[1761551349043,2.1436001,1159.4,1157.6,1.167]
[1761551349445,3.0010402,1159.9,1157.6,1.167]
[1761551349647,0.15022437,1160.0,1157.6,1.167]
[1761551355245,2.1436001,1159.9,1157.6,1.167]
[1761551356653,2.1436001,1159.8,1157.6,1.167]
[1761551358252,2.1436001,1159.9,1157.6,1.167]
[1761551358650,2.1436001,1159.5,1157.6,1.167]
[1761551362253,5.29486467,1160.0,1157.6,1.167]
[1761551362956,2.1436001,1159.8,1157.6,1.167]
[1761551363470,2.1436001,1159.1,1157.6,1.167]
[1761551363958,2.1436001,1159.2,1157.6,1.167]
[1761551364561,2.1436001,1159.3,1157.6,1.167]
[1761551365462,2.1436001,1159.2,1157.6,1.167]
[1761551366663,5.1446403,1159.7,1157.6,1.167]
[1761551367261,2.1436001,1159.7,1157.6,1.167]
[1761551367762,2.1436001,1159.6,1157.6,1.167]
[1761551368261,2.1436001,1159.9,1157.6,1.167]
[1761551368858,0.15022437,1160.0,1157.6,1.167]
[1761551368859,2.29382447,1160.0,1157.6,1.167]
[1761551369463,2.1436001,1159.9,1157.6,1.167]
[1761551369865,2.1436001,1159.2,1157.6,1.167]
[1761551371364,2.1436001,1159.6,1157.6,1.167]
[1761551372968,2.1436001,1159.9,1157.6,1.167]
[1761551374070,2.29382447,1160.0,1157.6,1.167]
[1761551374471,0.15022437,1160.0,1157.6,1.167]
[1761551377873,2.1436001,1159.8,1157.6,1.167]
[1761551381171,2.1436001,1159.9,1157.6,1.167]
[1761551381575,2.1436001,1159.8,1157.6,1.167]
[1761551382074,0.15022437,1160.0,1157.6,1.167]
[1761551382075,2.1436001,1159.7,1157.6,1.167]
[1761551382675,2.1436001,1159.8,1157.6,1.167]
[1761551386275,2.1436001,1159.9,1157.6,1.167]
[1761551386780,2.1436001,1159.7,1157.6,1.167]
[1761551387281,2.1436001,1159.4,1157.6,1.167]
[1761551391481,2.1436001,1159.3,1157.6,1.167]
[1761551392678,2.1436001,1159.6,1157.6,1.167]
[1761551393781,0.15022437,1160.0,1156.2,0.63557762]
[1761551393981,0.15022437,1160.0,1156.3,0.56867848]
[1761551394278,0.15022437,1160.0,1156.4,0.56867848]
[1761551394478,0.15022437,1160.0,1156.5,0.56867848]
[1761551394681,0.15022437,1160.0,1156.6,0.56867848]
[1761551394982,0.15022437,1160.0,1156.7,0.56867848]
[1761551395278,0.15022437,1160.0,1156.8,0.56867848]
[1761551395477,0.15022437,1160.0,1156.9,0.56867848]
[1761551395679,0.15022437,1160.0,1157.0,0.56867848]
[1761551395878,0.15022437,1160.0,1157.1,0.56867848]
[1761551396083,0.15022437,1160.0,1156.3,0.63557762]
[1761551396283,0.15022437,1160.0,1156.4,0.56898063]
[1761551396479,0.15022437,1160.0,1156.5,0.56898063]
[1761551396785,0.15022437,1160.0,1156.6,0.56898063]
[1761551396980,0.15022437,1160.0,1156.7,0.56898063]
[1761551397179,0.15022437,1160.0,1156.8,0.56898063]
[1761551397385,0.15022437,1160.0,1156.9,1.87098063]
[1761551397583,0.15022437,1160.0,1156.9,1.302]
[1761551397886,2.1436001,1158.9,1156.9,1.302]
[1761551400885,2.1436001,1159.0,1156.9,1.302]
[1761551401881,2.1436001,1159.1,1156.9,1.302]
[1761551403487,3.0010402,1159.6,1156.9,1.302]
[1761551403986,2.1436001,1159.7,1156.9,1.302]
[1761551404483,0.15022437,1160.0,1156.9,1.302]
[1761551404988,2.1436001,1158.7,1156.9,1.302]
[1761551406083,0.15022437,1160.0,1157.0,0.56930132]
[1761551406283,0.15022437,1160.0,1157.1,0.56930132]
[1761551406482,0.15022437,1160.0,1157.2,0.56930132]
[1761551406786,0.15022437,1160.0,1156.9,1.302]
[1761551406983,0.15022437,1160.0,1157.0,0.56924004]
[1761551407282,0.15022437,1160.0,1157.1,0.56924004]
[1761551407482,0.15022437,1160.0,1157.2,0.56924004]
[1761551407687,0.15022437,1160.0,1156.9,1.302]
[1761551407884,0.15022437,1160.0,1157.0,0.56960681]
[1761551408085,0.15022437,1160.0,1157.1,0.56960681]
[1761551408289,0.15022437,1160.0,1157.2,0.56960681]
[1761551408486,0.15022437,1160.0,1156.9,1.302]
[1761551408787,0.15022437,1160.0,1157.0,0.56961713]
[1761551408989,0.15022437,1160.0,1156.9,1.302]
[1761551409186,2.1436001,1158.9,1156.9,1.302]
[1761551409785,2.1436001,1158.8,1156.9,1.302]
[1761551410085,2.1436001,1158.7,1156.9,1.302]
[1761551415295,4.2872003,1159.7,1156.9,1.302]
[1761551416595,0.15022437,1160.0,1156.9,1.302]
[1761551416995,2.1436001,1159.7,1156.9,1.302]
[1761551417394,2.1436001,1159.0,1156.9,1.302]
[1761551419497,2.1436001,1159.1,1156.9,1.302]
[1761551420596,2.1436001,1159.2,1157.0,0.56967798]
[1761551420894,2.1436001,1159.2,1156.9,1.302]
[1761551421098,2.1436001,1159.2,1157.0,0.56957652]
[1761551421393,2.1436001,1159.2,1156.9,1.302]
[1761551421598,2.1436001,1159.2,1157.0,0.56957244]
[1761551421798,2.1436001,1159.2,1156.9,1.302]
[1761551421996,2.1436001,1159.2,1157.0,0.56959253]
[1761551422195,2.1436001,1159.2,1156.9,1.302]
[1761551422399,2.1436001,1159.2,1157.0,0.56958127]
[1761551422599,2.1436001,1159.2,1157.1,0.56962859]
[1761551422796,2.1436001,1159.8,1156.9,1.302]
[1761551422995,2.1436001,1159.8,1157.0,0.5696283]
[1761551423299,2.1436001,1159.9,1157.1,0.5696283]
[1761551423499,2.1436001,1159.9,1156.9,1.302]
[1761551423697,2.1436001,1159.9,1157.0,0.56960926]
[1761551423895,2.1436001,1159.9,1157.1,0.56960926]
[1761551424094,2.1436001,1159.9,1156.9,1.302]
[1761551424394,2.1436001,1159.9,1157.0,0.56960457]
[1761551424593,2.1436001,1159.9,1157.1,0.56960457]
[1761551424796,2.1436001,1159.9,1156.9,1.302]
[1761551424995,2.1436001,1159.9,1157.0,0.56961866]
[1761551425199,2.1436001,1159.9,1157.1,0.56961866]
[1761551425397,2.1436001,1159.9,1156.9,1.302]
[1761551425598,2.1436001,1159.9,1157.0,0.56965489]
[1761551425796,2.1436001,1159.9,1157.1,0.56965489]
[1761551425996,2.1436001,1159.9,1156.9,1.302]
[1761551426199,2.1436001,1159.9,1157.0,0.56965441]
[1761551426400,2.1436001,1159.9,1157.1,0.56965441]
[1761551426597,2.1436001,1159.9,1156.9,1.302]
[1761551426799,2.1436001,1159.8,1157.0,0.56981118]
[1761551426998,2.1436001,1159.8,1156.9,1.302]
[1761551427201,2.1436001,1159.8,1157.0,0.5699004]
[1761551427497,2.1436001,1159.7,1156.9,1.302]
[1761551427696,2.1436001,1159.7,1157.0,0.56995323]
[1761551427901,2.1436001,1159.6,1156.9,1.302]
[1761551428098,2.1436001,1159.6,1157.0,0.56995323]
[1761551428398,2.1436001,1159.6,1156.9,1.302]
[1761551428601,2.1436001,1159.6,1157.0,0.56996444]
[1761551428801,2.1436001,1159.6,1156.9,1.302]
[1761551428997,2.1436001,1159.5,1157.0,0.56996404]
[1761551429200,2.1436001,1159.5,1156.9,1.302]
[1761551429498,2.1436001,1159.5,1157.0,0.56996919]
[1761551429694,2.1436001,1159.5,1156.9,1.302]
[1761551429894,2.1436001,1159.6,1157.0,0.56996839]
[1761551430098,2.1436001,1159.6,1156.9,1.302]
[1761551430296,2.1436001,1159.6,1157.0,0.56988886]
[1761551430498,2.1436001,1159.6,1156.9,1.302]
[1761551430697,2.1436001,1159.6,1157.0,0.56991445]
[1761551431001,2.1436001,1159.6,1156.9,1.302]
[1761551431198,2.1436001,1159.6,1157.0,0.56986136]
[1761551431401,2.1436001,1159.6,1156.9,1.302]
[1761551431604,2.1436001,1159.6,1157.0,0.56987051]
[1761551431803,2.1436001,1159.6,1156.9,1.302]
[1761551431998,2.1436001,1159.8,1157.0,0.56987051]
[1761551432201,2.1436001,1159.8,1156.9,1.302]
[1761551432401,2.1436001,1159.8,1157.0,0.56987304]
[1761551432601,2.1436001,1159.8,1156.9,1.302]
[1761551432900,2.1436001,1159.8,1157.0,0.56987264]
[1761551433103,2.1436001,1159.8,1156.9,1.302]
[1761551433302,2.1436001,1159.8,1157.0,0.56987244]
[1761551433506,2.1436001,1159.8,1156.9,1.302]
[1761551433802,2.1436001,1159.8,1157.0,0.56987533]
[1761551434001,2.1436001,1159.8,1156.9,1.302]
[1761551434202,2.1436001,1159.8,1157.0,0.56987473]
[1761551434503,2.1436001,1159.8,1156.9,1.302]
[1761551434705,2.1436001,1159.6,1156.9,1.302]
[1761551435006,3.0010402,1159.3,1156.9,1.302]
[1761551435203,2.1436001,1158.9,1156.9,1.302]
[1761551438911,2.1436001,1159.0,1156.9,1.302]
[1761551439414,2.1436001,1158.9,1156.9,1.302]
[1761551440413,2.1436001,1159.2,1156.9,1.302]
[1761551444512,2.1436001,1159.7,1156.9,1.302]
[1761551445117,2.1436001,1159.5,1156.9,1.302]
[1761551446515,2.1436001,1159.6,1156.9,1.302]
[1761551447114,2.1436001,1159.5,1156.9,1.302]
[1761551448313,2.1436001,1159.2,1156.9,1.302]
[1761551449313,2.1436001,1159.0,1156.9,1.302]
[1761551450815,2.1436001,1159.1,1157.0,0.57102324]
[1761551451016,2.1436001,1159.9,1156.9,1.302]
[1761551451319,2.1436001,1159.9,1157.0,0.57093977]
[1761551451517,2.1436001,1159.0,1156.9,1.302]
[1761551451816,2.1436001,1159.0,1157.0,0.57099756]
[1761551452113,2.1436001,1159.2,1157.1,0.57099756]
[1761551452318,2.1436001,1159.2,1157.2,0.57099756]
[1761551452515,2.1436001,1159.2,1156.9,1.93757762]
[1761551452516,2.1436001,1159.3,1156.9,1.302]
[1761551452818,2.1436001,1159.3,1157.0,0.61402316]
[1761551453018,2.1436001,1159.7,1157.1,0.61402316]
[1761551453217,2.1436001,1159.7,1156.9,1.302]
[1761551453218,2.1436001,1159.7,1157.2,0.61402316]
[1761551453418,2.1436001,1159.7,1156.9,1.302]
[1761551453619,2.1436001,1159.7,1157.0,0.60868743]
[1761551453817,2.1436001,1159.7,1157.1,0.60868743]
[1761551454015,2.1436001,1159.7,1157.2,0.60868743]
[1761551454215,2.1436001,1159.7,1157.3,0.60865523]
[1761551454415,2.1436001,1159.7,1156.7,0.63557762]
[1761551454616,2.1436001,1159.9,1156.8,0.60867318]
[1761551454819,2.1436001,1159.9,1156.9,0.60867318]
[1761551455020,2.1436001,1159.9,1157.0,0.60867318]
[1761551455321,2.1436001,1159.9,1157.1,0.60867318]
[1761551455518,2.1436001,1159.9,1157.2,0.60867318]
[1761551455719,2.1436001,1159.9,1157.3,0.60867318]
[1761551455917,2.1436001,1159.9,1156.8,0.63557762]
[1761551456120,2.1436001,1159.9,1156.9,0.60864496]
[1761551456320,2.1436001,1159.9,1157.0,0.60864496]
[1761551456617,2.29382447,1160.0,1157.1,1.72964496]
[1761551456816,2.29382447,1160.0,1157.2,0.60864496]
[1761551457016,2.29382447,1160.0,1157.3,0.60864496]
[1761551457219,0.15022437,1160.0,1157.4,0.60864496]
[1761551457418,0.15022437,1160.0,1157.1,1.121]
[1761551457617,0.15022437,1160.0,1157.2,0.60894864]
[1761551457819,0.15022437,1160.0,1157.3,0.60894864]
[1761551458017,0.15022437,1160.0,1157.1,1.121]
[1761551458217,0.15022437,1160.0,1157.2,0.60561739]
[1761551458415,0.15022437,1160.0,1157.3,0.60561739]
[1761551458619,0.15022437,1160.0,1157.1,1.121]
[1761551458819,0.15022437,1160.0,1157.2,0.60559213]
[1761551459018,0.15022437,1160.0,1157.3,0.60559213]
[1761551459219,0.15022437,1160.0,1157.1,1.121]
[1761551459422,0.15022437,1160.0,1157.2,0.60558302]
[1761551459623,0.15022437,1160.0,1157.3,0.60558302]
[1761551459824,0.15022437,1160.0,1157.1,1.121]
[1761551460023,0.15022437,1160.0,1157.2,0.60559444]
[1761551460220,0.15022437,1160.0,1157.3,0.60559444]
[1761551460419,0.15022437,1160.0,1157.4,0.60559444]
[1761551460620,0.15022437,1160.0,1157.1,1.121]
[1761551460819,2.1436001,1159.5,1157.2,0.60542416]
[1761551461024,2.1436001,1159.5,1157.3,0.60542416]
[1761551461225,2.1436001,1159.5,1157.4,0.60542416]
[1761551461424,2.1436001,1159.5,1157.1,1.121]
[1761551461621,2.1436001,1159.5,1157.2,0.60540221]
[1761551461826,2.1436001,1159.5,1157.3,0.60540221]
[1761551462024,2.1436001,1159.5,1157.4,0.60540221]
[1761551462228,2.1436001,1159.5,1157.1,1.121]
[1761551462424,2.1436001,1159.5,1157.2,0.60522752]
[1761551462727,2.1436001,1159.5,1157.3,0.60522752]
[1761551462925,2.1436001,1159.5,1157.4,0.60522752]
[1761551463129,2.1436001,1159.5,1157.1,1.121]
[1761551463329,2.1436001,1159.4,1157.2,0.60190786]
[1761551463625,2.1436001,1159.4,1157.3,0.60190786]
[1761551463829,2.1436001,1159.4,1157.4,0.60190786]
[1761551464126,2.1436001,1159.4,1157.1,1.121]
[1761551464326,2.1436001,1159.4,1157.2,0.59887146]
[1761551464526,2.1436001,1159.4,1157.3,0.59887146]
[1761551464825,2.1436001,1159.4,1157.1,1.121]
[1761551465029,2.1436001,1159.7,1157.2,0.59927844]
[1761551465230,2.1436001,1159.7,1157.3,0.59927844]
[1761551465426,2.1436001,1159.6,1157.1,1.121]
[1761551465730,2.1436001,1159.6,1157.2,0.59928566]
[1761551465925,2.1436001,1159.7,1157.3,0.59928566]
[1761551466131,2.1436001,1159.7,1157.1,1.121]
[1761551466327,2.1436001,1159.7,1157.2,0.59927556]
[1761551466526,2.1436001,1159.7,1157.3,0.59927556]
[1761551466728,2.1436001,1159.7,1157.1,1.121]
[1761551466928,2.1436001,1159.7,1157.2,0.59932488]
[1761551467129,2.1436001,1159.1,1157.1,1.121]
[1761551467333,2.1436001,1159.1,1157.2,0.59970487]
[1761551467532,2.1436001,1159.1,1157.1,1.121]
[1761551467828,2.1436001,1159.1,1157.2,0.59969209]
[1761551468032,2.1436001,1159.1,1157.1,1.121]
[1761551468732,2.1436001,1159.0,1157.1,1.121]
[1761551470129,2.1436001,1159.1,1157.1,1.121]
[1761551470634,2.1436001,1159.0,1157.1,1.121]
[1761551472235,2.1436001,1159.1,1157.1,1.121]
[1761551472637,2.1436001,1159.6,1157.2,0.57637915]
[1761551472840,2.1436001,1160.5,1158.1,0.63557762]
[1761551473037,2.1436001,1160.5,1157.8,0.85044069]
[1761551473038,2.29381733,1160.5,1158.2,0.57637915]
[1761551473239,2.29381733,1160.5,1158.3,0.57637915]
[1761551473437,0.15021723,1160.5,1158.4,0.57637915]
[1761551473642,0.15021723,1160.5,1158.5,0.57637915]
[1761551473839,0.15021723,1160.5,1157.9,0.63557762]
[1761551474143,0.15021723,1160.5,1158.0,0.59564377]
[1761551474343,0.15021723,1160.5,1158.1,0.59564377]
[1761551474543,0.15021723,1160.5,1158.2,0.59564377]
[1761551474738,0.15021723,1160.5,1158.3,0.59564377]
[1761551474943,0.15021723,1160.5,1158.4,0.59564377]
[1761551475144,0.15021723,1160.5,1157.8,0.63557762]
[1761551475342,0.15021723,1160.5,1157.9,0.58927296]
[1761551475541,0.15021723,1160.5,1158.0,0.58927296]
[1761551475743,0.15021723,1160.5,1158.1,0.58927296]
[1761551475939,0.15021723,1160.5,1158.2,0.58927296]
[1761551476142,0.15021723,1160.5,1158.3,0.58927296]
[1761551476442,0.15021723,1160.5,1158.4,0.58927296]
[1761551476641,0.15021723,1160.5,1157.8,0.63557762]
[1761551476940,0.15021723,1160.5,1157.9,0.58826778]
[1761551477142,0.15021723,1160.5,1158.0,0.58826778]
[1761551477346,0.15021723,1160.5,1158.1,0.58826778]
[1761551477546,0.15021723,1160.5,1158.2,0.58826778]
[1761551477746,0.15021723,1160.5,1158.3,0.58826778]
[1761551477946,2.1436001,1162.3,1158.4,0.58826778]
[1761551478147,0.15008378,1160.7,1158.5,0.58826778]
[1761551478346,2.1436001,1161.7,1158.0,0.63557762]
[1761551478646,0.15009348,1160.7,1158.1,0.58709627]
[1761551478942,0.15009348,1160.7,1158.2,0.58709627]
[1761551479143,0.15009348,1160.7,1158.3,0.58709627]
[1761551479344,0.15009348,1160.7,1158.4,0.58709627]
[1761551479548,0.15009348,1160.7,1158.5,0.58709627]
[1761551479847,0.15009348,1160.7,1158.6,0.58709627]
[1761551480147,2.1436001,1161.9,1158.7,1.042]
[1761551480348,2.1436001,1162.7,1158.8,0.58543186]
[1761551480545,0.1500456,1161.0,1158.9,0.58543186]
[1761551480844,2.1436001,1162.6,1158.7,1.042]
[1761551481048,0.15002878,1161.0,1158.8,0.5853378]
[1761551481249,2.1436001,1162.6,1158.9,0.5853378]
[1761551481448,2.1436001,1162.8,1158.7,1.042]
[1761551481648,0.15003525,1161.0,1158.8,1.26544551]
[1761551481848,2.1436001,1163.2,1158.9,0.62986789]
[1761551482145,0.15002813,1161.1,1159.0,0.62986789]
[1761551482349,2.1436001,1163.4,1159.1,0.62986789]
[1761551482549,0.15000162,1161.2,1159.2,0.62986789]
[1761551482745,0.15000162,1161.2,1159.3,0.62986789]
[1761551482947,2.1436001,1162.9,1158.8,0.63557762]
[1761551483146,0.14998869,1161.2,1158.9,0.62268229]
[1761551483349,0.14998869,1161.2,1159.0,0.62268229]
[1761551483547,2.1436001,1163.5,1159.1,0.62268229]
[1761551483749,0.15002554,1161.0,1159.2,0.62268229]
[1761551483947,2.1436001,1163.5,1159.3,0.62268229]
[1761551484252,0.14999644,1161.0,1158.8,0.63557762]
[1761551484451,0.14999644,1161.0,1158.9,0.62003239]
[1761551484651,2.1436001,1163.6,1159.0,0.62003239]
[1761551484848,0.15000162,1161.1,1159.1,0.62003239]
[1761551485050,2.1436001,1163.3,1159.2,0.62003239]
[1761551485352,0.14998481,1161.2,1158.7,1.67757762]
[1761551485553,2.1436001,1163.3,1158.8,0.60825539]
[1761551485752,2.1436001,1163.3,1158.9,0.60825539]
[1761551486048,0.15000744,1161.2,1159.0,0.60825539]
[1761551486253,2.1436001,1163.3,1159.1,0.60825539]
[1761551486453,0.15000097,1162.3,1159.2,0.60825539]
[1761551486749,0.15000097,1162.3,1158.7,1.67757762]
[1761551486948,0.15000097,1162.3,1158.8,0.60455764]
[1761551487152,0.15000097,1162.3,1158.9,0.60455764]
[1761551487352,0.15000097,1162.3,1159.0,0.60455764]
[1761551487650,0.15000097,1162.3,1159.1,0.60455764]
[1761551487853,0.15000097,1162.3,1159.2,0.60080524]
[1761551488150,0.15000097,1162.3,1158.8,0.63557762]
[1761551488352,0.15000097,1162.3,1158.9,0.60048216]
[1761551488548,0.15000097,1162.3,1159.0,0.60048216]
[1761551488751,0.15000097,1162.3,1159.1,0.60048216]
[1761551489049,0.15000097,1162.3,1159.2,0.60048216]
[1761551489251,0.15000097,1162.3,1159.3,0.60048216]
[1761551489449,0.15000097,1162.3,1158.9,0.63557762]
[1761551489650,0.15000097,1162.3,1159.0,0.59996695]
[1761551489848,0.15000097,1162.3,1159.1,0.59996695]
[1761551490049,0.15000097,1162.3,1159.2,0.59996695]
[1761551490250,0.15000097,1162.3,1159.3,0.59996695]
[1761551490446,0.15000097,1162.3,1158.9,0.63557762]
[1761551490646,0.15000097,1162.3,1159.0,0.59801535]
[1761551490850,0.15000097,1162.3,1159.1,0.59801535]
[1761551491049,0.15000097,1162.3,1159.2,0.59801535]
[1761551491249,0.15000097,1162.3,1159.3,0.59801535]
[1761551491448,0.15000097,1162.3,1158.8,0.63557762]
[1761551491653,0.15000097,1162.3,1158.9,0.5974405]
[1761551491849,0.15000097,1162.3,1159.0,0.5974405]
[1761551492049,0.15000097,1162.3,1159.1,0.5974405]
[1761551492252,0.15000097,1162.3,1159.2,0.5974405]
[1761551492453,0.15000097,1162.3,1159.3,0.5974405]
[1761551492657,0.15000097,1162.3,1159.4,0.5974405]
[1761551492856,0.15000097,1162.3,1159.5,0.5974405]
[1761551493151,0.15000097,1162.3,1158.8,0.63557762]
[1761551493354,0.15000097,1162.3,1158.9,0.5959362]
[1761551493554,0.15000097,1162.3,1159.0,0.5959362]
[1761551493751,0.15000097,1162.3,1159.1,0.5959362]
[1761551493957,0.15000097,1162.3,1159.2,0.5959362]
[1761551494152,0.15000097,1162.3,1159.3,0.5959362]
[1761551494353,0.15000097,1162.3,1159.4,0.5959362]
[1761551494553,0.15000097,1162.3,1159.5,0.5959362]
[1761551494757,0.15000097,1162.3,1158.8,0.63557762]
[1761551494954,0.15000097,1162.3,1158.9,0.5937253]
[1761551495157,0.15000097,1162.3,1159.0,0.5937253]
[1761551495454,0.15000097,1162.3,1159.1,0.5937253]
[1761551495754,0.15000097,1162.3,1159.2,0.5937253]
[1761551495957,0.15000097,1162.3,1158.9,0.63557762]
[1761551495958,0.15000097,1162.3,1159.3,0.5937253]
[1761551496153,0.15000097,1162.3,1159.4,0.5937253]
[1761551496354,0.15000097,1162.3,1159.5,0.5937253]
[1761551496558,0.15000097,1162.3,1159.6,0.5937253]
[1761551496858,0.15000097,1162.3,1159.0,0.63557762]
[1761551497054,0.15000097,1162.3,1159.1,0.59259385]
[1761551497354,0.15000097,1162.3,1159.2,0.59259385]
[1761551497557,0.15000097,1162.3,1158.9,0.63557762]
[1761551497558,0.15000097,1162.3,1159.3,0.59259385]
[1761551497755,0.15000097,1162.3,1158.8,0.63557762]
[1761551497953,0.15000097,1162.3,1158.9,1.22829725]
[1761551498156,0.15000097,1162.3,1159.0,0.59271963]
[1761551498355,0.15000097,1162.3,1159.1,0.59271963]
[1761551498557,0.15000097,1162.3,1159.2,0.59271963]
[1761551498755,0.15000097,1162.3,1159.3,0.59271963]
[1761551499059,0.15000097,1162.3,1158.8,0.63557762]
[1761551499257,0.15000097,1162.3,1158.9,0.58823689]
[1761551499457,0.15000097,1162.3,1159.0,0.58823689]
[1761551499757,0.15000097,1162.3,1159.1,0.58823689]
[1761551499960,0.15000097,1162.3,1158.7,1.67757762]
[1761551500156,0.15000097,1162.3,1158.8,0.58684926]
[1761551500356,0.15000097,1162.3,1158.9,0.58684926]
[1761551500561,0.15000097,1162.3,1159.0,0.58684926]
[1761551500760,0.15000097,1162.3,1158.7,1.67757762]
[1761551500958,0.15000097,1162.3,1158.8,0.58681721]
[1761551501162,0.15000097,1162.3,1158.9,0.58681721]
[1761551501363,0.15000097,1162.3,1159.0,0.58681721]
[1761551501657,0.15000097,1162.3,1159.1,0.58681721]
[1761551501858,0.15000097,1162.3,1158.7,1.67757762]
[1761551502059,0.15000097,1162.3,1158.8,0.58677216]
[1761551502259,0.15000097,1162.3,1158.9,0.58677216]
[1761551502460,0.15000097,1162.3,1159.0,0.58677216]
[1761551502763,0.15000097,1162.3,1159.1,0.58677216]
[1761551502961,0.15000097,1162.3,1158.7,1.042]
[1761551503263,0.15000097,1162.3,1158.8,0.5867348]
[1761551503463,0.15000097,1162.3,1158.9,0.5867348]
[1761551503664,0.15000097,1162.3,1159.0,0.5867348]
[1761551503961,0.15000097,1162.3,1158.7,1.042]
[1761551506167,0.15000097,1162.3,1158.8,0.58249369]
[1761551506367,0.15000097,1162.3,1158.7,1.042]
[1761551506588,0.15000097,1162.3,1158.8,0.58261781]
[1761551506867,0.15000097,1162.3,1158.7,1.042]
[1761551507068,0.15000097,1162.3,1158.8,0.5826427]
[1761551507270,0.15000097,1162.3,1158.2,0.63557762]
[1761551507469,0.15000097,1162.3,1158.3,0.58298629]
[1761551507769,0.15000097,1162.3,1158.4,0.58298629]
[1761551507969,0.15000097,1162.3,1158.5,0.58298629]
[1761551508269,0.15000097,1162.3,1158.6,0.58298629]
[1761551508564,0.15000097,1162.3,1158.7,0.58298629]
[1761551508865,0.15000097,1162.3,1158.8,0.58298629]
[1761551509164,0.15000097,1162.3,1158.9,0.58298629]
[1761551509370,0.15000097,1162.3,1158.3,0.63557762]
[1761551509665,0.15000097,1162.3,1158.4,0.58339044]
[1761551509865,0.15000097,1162.3,1158.5,0.58339044]
[1761551510064,0.15000097,1162.3,1158.6,0.58339044]
[1761551510365,0.15000097,1162.3,1158.7,0.58339044]
[1761551510568,0.15000097,1162.3,1158.8,0.58339044]
[1761551510769,0.15000097,1162.3,1158.9,2.09539044]
[1761551510965,0.15000097,1162.3,1158.9,1.512]
[1761551514370,2.29360107,1162.3,1158.9,1.512]
[1761551514866,2.1436001,1162.2,1158.9,1.512]
[1761551517371,2.29360107,1162.3,1158.9,1.512]
[1761551519080,0.15000097,1162.3,1158.9,1.512]
[1761551519480,2.1436001,1161.7,1158.9,1.512]
[1761551520077,3.0010402,1162.0,1158.9,1.512]
[1761551520981,0.15000097,1162.3,1158.9,1.512]
[1761551522581,2.1436001,1161.8,1158.9,1.512]
[1761551523683,2.1436001,1161.7,1158.9,1.512]
[1761551524679,2.1436001,1161.6,1158.9,1.512]
[1761551525384,2.1436001,1161.5,1158.9,1.512]
[1761551526380,2.1436001,1161.2,1158.9,1.512]
[1761551526785,2.1436001,1161.1,1158.9,1.512]
[1761551527281,2.1436001,1161.7,1158.9,1.512]
[1761551528486,2.1436001,1161.6,1158.9,1.512]
[1761551529588,2.1436001,1161.5,1158.9,1.512]
[1761551530383,2.1436001,1161.4,1158.9,1.512]
[1761551531486,2.1436001,1161.3,1158.9,1.512]
[1761551532489,2.1436001,1161.1,1158.9,1.512]
[1761551533493,2.1436001,1161.3,1158.9,1.512]
[1761551537298,2.1436001,1161.0,1158.9,1.512]
[1761551539195,2.1436001,1161.1,1158.9,1.512]
[1761551540698,2.1436001,1162.2,1158.9,1.512]
[1761551541300,2.1436001,1161.9,1158.9,1.512]
[1761551542699,2.1436001,1161.8,1158.9,1.512]
[1761551543899,2.1436001,1161.4,1158.4,0.63557762]
[1761551544097,2.1436001,1161.4,1158.5,0.61194115]
[1761551544298,2.1436001,1161.1,1158.2,0.63557762]
[1761551544496,2.1436001,1161.1,1158.3,0.61026725]
[1761551544794,2.1436001,1161.1,1158.4,0.61026725]
[1761551544993,2.1436001,1161.1,1158.5,0.61026725]
[1761551545198,2.1436001,1161.1,1158.2,0.63557762]
[1761551545396,2.1436001,1161.0,1158.3,0.60093996]
[1761551545697,2.1436001,1161.0,1158.4,0.60093996]
[1761551545896,2.1436001,1161.0,1158.1,0.63557762]
[1761551545897,2.1436001,1161.0,1158.5,0.60093996]
[1761551546096,2.1436001,1161.0,1158.2,0.63557762]
[1761551546295,2.1436001,1161.0,1158.3,0.60202315]
[1761551546495,2.1436001,1161.0,1158.2,0.63557762]
[1761551546496,2.1436001,1161.0,1158.4,1.71702315]
[1761551546695,2.1436001,1161.0,1158.5,0.60202315]
[1761551546898,2.1436001,1161.6,1158.6,0.60202315]
[1761551547098,2.1436001,1161.6,1158.7,0.60192184]
[1761551547298,2.1436001,1161.6,1158.4,1.115]
[1761551547498,5.1446403,1162.1,1158.5,0.60208568]
[1761551547697,5.1446403,1162.1,1158.6,0.60208568]
[1761551547996,2.1436001,1162.0,1158.4,1.115]
[1761551548202,2.1436001,1162.0,1158.5,0.60214993]
[1761551548401,2.1436001,1162.0,1158.4,1.115]
[1761551548597,2.1436001,1162.0,1158.5,0.598903]
[1761551548802,2.1436001,1162.0,1158.4,1.115]
[1761551549001,2.1436001,1162.0,1158.5,0.59888623]
[1761551549302,2.1436001,1162.0,1158.4,1.115]
[1761551549498,2.1436001,1161.9,1158.5,0.59892956]
[1761551549702,2.1436001,1161.9,1158.4,1.115]
[1761551550003,2.1436001,1161.8,1158.5,0.59894103]
[1761551550202,2.1436001,1161.8,1158.4,1.115]
[1761551550401,2.1436001,1161.8,1158.5,0.59869757]
[1761551550698,2.1436001,1161.8,1158.4,1.115]
[1761551550903,2.1436001,1161.8,1158.5,0.59876175]
[1761551551199,2.1436001,1161.8,1158.4,1.115]
[1761551551401,2.1436001,1161.8,1158.5,0.59889106]
[1761551551699,2.1436001,1161.7,1158.4,1.115]
[1761551551899,2.1436001,1161.7,1158.5,0.59875521]
[1761551552101,2.1436001,1161.8,1158.4,1.115]
[1761551552299,2.1436001,1161.8,1158.5,0.59878421]
[1761551552602,2.1436001,1161.8,1158.4,1.115]
[1761551552798,2.1436001,1161.8,1158.5,0.59882967]
[1761551553002,2.1436001,1161.8,1158.4,1.115]
[1761551553203,2.1436001,1161.8,1158.5,0.59877618]
[1761551553403,2.1436001,1161.8,1158.4,1.115]
[1761551553603,2.1436001,1161.6,1158.4,1.115]
[1761551554202,2.1436001,1161.5,1158.4,1.115]
[1761551555605,2.1436001,1161.6,1158.4,1.115]
[1761551556305,2.1436001,1161.5,1158.4,1.115]
[1761551557303,2.1436001,1161.3,1158.4,1.115]